fUSD/lending_fUSD_20241222
["ID","MTS","AMOUNT","RATE_DAILY","PERIOD"]
[346284341,1734865847256,-562.85,0.00019726,2]
[346284342,1734865847266,-500.0,0.00019726,2]
[346284343,1734865847277,-518.09,0.00019726,2]
[346284344,1734865847287,-2006.52,0.00019726,2]
[346284345,1734865847297,-500.0,0.00019726,2]
[346284346,1734865847307,-1793.77,0.00019726,2]
[346284347,1734865847316,-864.15,0.00019726,2]
[346284348,1734865847326,-402.50564989,0.00019726,2]
[346284349,1734865847335,-1933.38,0.00019726,2]
[346284350,1734865847348,-598.41,0.00019726,2]
[346284351,1734865847358,-500.0,0.00019726,2]
[346284352,1734865847367,-653.23,0.00019726,2]
[346284353,1734865847380,-1217.15,0.00019726,2]
[346284354,1734865847391,-1981.49,0.00019726,2]
[346284355,1734865847400,-5358.32,0.00019726,2]
[346284356,1734865847412,-590.86,0.00019726,2]
[346284357,1734865847425,-1960.88,0.00019726,2]
[346284358,1734865847435,-8832.85,0.00019726,2]
[346284359,1734865847447,-1158.63,0.00019726,2]
[346284360,1734865847458,-500.0,0.00019726,2]
[346284361,1734865847470,-659.19,0.00019726,2]
[346284362,1734865847480,-500.0,0.00019726,2]
[346284363,1734865847490,-730.03,0.00019726,2]
[346284364,1734865847500,-1938.13,0.00019726,2]
[346284365,1734865847511,-500.0,0.00019726,2]
[346284366,1734865847522,-561.21,0.00019726,2]
[346284367,1734865847531,-500.0,0.00019726,2]
[346284368,1734865847541,-1896.65,0.00019726,2]
[346284369,1734865847553,-650.91,0.00019726,2]
[346284370,1734865847563,-1863.34,0.00019726,2]
[346284371,1734865847573,-3750.32,0.00019726,2]
[346284372,1734865847583,-500.0,0.00019726,2]
[346284373,1734865847595,-2617.09,0.00019726,2]
[346284374,1734865847605,-7630.8,0.00019726,2]
[346284375,1734865847614,-500.0,0.00019726,2]
[346284376,1734865847626,-500.0,0.00019726,2]
[346284377,1734865847636,-878.57,0.00019726,2]
[346284378,1734865847646,-2358.89,0.00019726,2]
[346284379,1734865847656,-986.44,0.00019726,2]
[346284380,1734865847666,-500.0,0.00019726,2]
[346284381,1734865847676,-930.62,0.00019726,2]
[346284382,1734865847686,-500.0,0.00019726,2]
[346284383,1734865847695,-1017.17,0.00019726,2]
[346284384,1734865847705,-500.0,0.00019726,2]
[346284385,1734865847715,-3590.37,0.00019726,2]
[346284386,1734865847725,-500.0,0.00019726,2]
[346284387,1734865847735,-500.0,0.00019726,2]
[346284388,1734865847745,-562.49109711,0.00019726,2]
[346284389,1734865847754,-500.0,0.00019726,2]
[346284390,1734865847764,-1397.22,0.00019726,2]
[346284391,1734865847774,-1525.6,0.00019726,2]
[346284392,1734865847784,-500.0,0.00019726,2]
[346284393,1734865847794,-559.13,0.00019726,2]
[346284394,1734865847803,-505.69,0.00019726,2]
[346284395,1734865847813,-500.0,0.00019726,2]
[346284396,1734865847823,-717.36,0.00019726,2]
[346284397,1734865847832,-500.0,0.00019726,2]
[346284398,1734865847843,-14336.73,0.00019726,2]
[346284399,1734865847853,-500.0,0.00019726,2]
[346284400,1734865847863,-655.75,0.00019726,2]
[346284401,1734865847873,-957.6,0.00019726,2]
[346284402,1734865847883,-500.0,0.00019726,2]
[346284403,1734865847892,-500.0,0.00019726,2]
[346284404,1734865847902,-500.0,0.00019726,2]
[346284405,1734865847912,-595.17,0.00019726,2]
[346284406,1734865847922,-516.82,0.00019726,2]
[346284407,1734865847932,-822.1,0.00019726,2]
[346284408,1734865847941,-500.0,0.00019726,2]
[346284409,1734865847951,-500.0,0.00019726,2]
[346284410,1734865847961,-150.0,0.00019726,2]
[346284411,1734865847971,-206.0,0.0001974,2]
[346284412,1734865847980,-206.0,0.0001974,2]
[346284413,1734865847990,-425.02160785,0.000198,2]
[346284414,1734865847999,-24401.304037,0.000198,2]
[346284415,1734865848009,-24401.304037,0.000198,2]
[346284416,1734865848018,-24401.304037,0.000198,2]
[346284417,1734865848028,-24401.304037,0.000198,2]
[346284418,1734865848037,-24401.304037,0.000198,2]
[346284419,1734865848047,-24401.304037,0.000198,2]
[346284420,1734865848056,-24401.304037,0.000198,2]
[346284421,1734865848065,-24401.304037,0.000198,2]
[346284422,1734865848075,-24401.304037,0.000198,2]
[346284423,1734865848085,-24401.304037,0.000198,2]
[346284424,1734865848096,-24401.304037,0.000198,2]
[346284425,1734865848106,-24401.304037,0.000198,2]
[346284426,1734865848116,-24401.304037,0.000198,2]
[346284427,1734865848126,-24401.304037,0.000198,2]
[346284428,1734865848136,-24401.304037,0.000198,2]
[346284429,1734865848146,-24401.304037,0.000198,2]
[346284430,1734865848156,-24401.304037,0.000198,2]
[346284431,1734865848165,-24401.304037,0.000198,2]
[346284432,1734865848175,-24401.304037,0.000198,2]
[346284433,1734865848184,-24401.304037,0.000198,2]
[346284434,1734865848194,-24401.304037,0.000198,2]
[346284435,1734865848209,-24401.304037,0.000198,2]
[346284436,1734865848219,-1000.0,0.000198,2]
[346284437,1734865848229,-150.0,0.00019806,2]
[346284438,1734865848238,-6147.37044527,0.00019809,2]
[346284439,1734865848249,-10998.59851335,0.00019809,2]
[346284440,1734865848261,-1500.0,0.0001982,2]
[346284441,1734865848272,-425.15,0.00019831,2]
[346284442,1734865848282,-150.0,0.00019834,2]
[346284443,1734865848291,-500.0,0.0001984,2]
[346284444,1734865848302,-1500.0,0.00019862,2]
[346284445,1734865848312,-150.0,0.00019872,2]
[346284446,1734865848322,-148134.56047229,0.0001988,3]
[346284447,1734865848331,-153.0,0.00019881,2]
[346284448,1734865848343,-153.0,0.00019881,2]
[346284449,1734865848354,-153.0,0.00019881,2]
[346284450,1734865848365,-153.0,0.00019881,2]
[346284451,1734865848374,-153.0,0.00019881,2]
[346284452,1734865848384,-153.0,0.00019881,2]
[346284453,1734865848394,-153.0,0.00019881,2]
[346284454,1734865848404,-153.0,0.00019881,2]
[346284455,1734865848415,-153.0,0.00019881,2]
[346284456,1734865848424,-153.0,0.00019881,2]
[346284457,1734865848434,-237.93055287,0.00019899,2]
[346284458,1734865848444,-2416.89,0.000199,2]
[346284459,1734865848454,-19832.7198,0.000199,2]
[346284460,1734865848463,-161.05242704,0.000199,2]
[346284461,1734865848473,-18208.6321,0.000199,2]
[346284462,1734865848482,-3437.0,0.000199,2]
[346284463,1734865848492,-2851.325,0.000199,2]
[346284464,1734865848501,-199.973,0.000199,2]
[346284465,1734865848512,-6147.37044527,0.000199,2]
[346284466,1734865848522,-10998.59851335,0.000199,2]
[346284467,1734865848532,-203.7120636,0.000199,2]
[346284468,1734865848542,-805.29,0.00019902,2]
[346284469,1734865848552,-437.0,0.00019904,2]
[346284470,1734865848562,-437.0,0.00019904,2]
[346284471,1734865848572,-770.54,0.00019904,2]
[346284472,1734865848582,-150.0,0.00019945,2]
[346284473,1734865848593,-228.176,0.00019945,2]
[346284474,1734865848603,-150.899,0.00019945,2]
[346284475,1734865848613,-1265.0,0.00019945,2]
[346284476,1734865848623,-2010.0,0.00019945,2]
[346284477,1734865848632,-633.0,0.00019945,2]
[346284478,1734865848801,-565.0,0.00019945,2]
[346284479,1734865848812,-150.0,0.00019945,2]
[346284480,1734865848822,-1898.0,0.00019945,2]
[346284481,1734865848831,-818.0,0.00019945,2]
[346284482,1734865848842,-925.0,0.00019945,2]
[346284483,1734865848852,-1256.0,0.00019945,2]
[346284484,1734865848861,-3770.0,0.00019945,2]
[346284485,1734865848873,-536.0,0.00019945,2]
[346284486,1734865848883,-3682.0,0.00019945,2]
[346284487,1734865848892,-13756.0,0.00019945,2]
[346284488,1734865848902,-3886.0,0.00019945,2]
[346284489,1734865848912,-150.0,0.00019945,2]
[346284490,1734865848922,-1170.0,0.00019945,2]
[346284491,1734865848932,-150.0,0.00019954,2]
[346284492,1734865848942,-314.9879487,0.0001996,2]
[346284493,1734865848952,-40000.0,0.00019985,2]
[346284494,1734865848961,-2147.5518554,0.00019996,2]
[346284495,1734865848971,-1818.267634,0.00019996,2]
[346284496,1734865848980,-1488.9834127,0.00019996,2]
[346284497,1734865848990,-1159.6991913,0.00019996,2]
[346284498,1734865848999,-830.41497,0.00019996,2]
[346284499,1734865849009,-501.1307487,0.00019996,2]
[346284500,1734865849019,-3208.6277284,0.00019996,2]
[346284501,1734865849028,-2716.6486963,0.00019996,2]
[346284502,1734865849037,-2224.6696642,0.00019996,2]
[346284503,1734865849047,-1732.6906322,0.00019996,2]
[346284504,1734865849057,-1240.7116001,0.00019996,2]
[346284505,1734865849066,-748.732568,0.00019996,2]
[346284506,1734865849077,-222.12222,0.00019997,2]
[346284507,1734865849086,-222.12222,0.00019997,2]
[346284508,1734865849097,-222.12222,0.00019997,2]
[346284509,1734865849107,-222.12222,0.00019997,2]
[346284510,1734865849117,-222.12222,0.00019997,2]
[346284511,1734865849126,-222.12222,0.00019997,2]
[346284512,1734865849136,-222.12222,0.00019997,2]
[346284513,1734865849145,-222.12222,0.00019997,2]
[346284514,1734865849155,-222.12222,0.00019997,2]
[346284515,1734865849165,-222.12222,0.00019998,2]
[346284516,1734865849174,-222.12222,0.00019998,2]
[346284517,1734865849184,-222.12222,0.00019998,2]
[346284518,1734865849194,-222.12222,0.00019998,2]
[346284519,1734865849204,-222.12222,0.00019998,2]
[346284520,1734865849214,-222.12222,0.00019998,2]
[346284521,1734865849224,-222.12222,0.00019998,2]
[346284522,1734865849234,-222.12222,0.00019998,2]
[346284523,1734865849244,-222.12222,0.00019998,2]
[346284524,1734865849254,-222.12222,0.00019998,2]
[346284525,1734865849264,-222.12222,0.00019998,3]
[346284526,1734865849273,-222.12222,0.00019998,3]
[346284527,1734865849283,-222.12222,0.00019998,3]
[346284528,1734865849292,-2232.93,0.00019998,2]
[346284529,1734865849302,-1634.0,0.00019999,2]
[346284530,1734865849312,-666.0,0.00019999,2]
[346284531,1734865849322,-300.0,0.00019999,2]
[346284532,1734865849331,-675.33170954,0.00019999,2]
[346284533,1734865849343,-300.0,0.00019999,2]
[346284534,1734865849357,-666.0,0.00019999,2]
[346284535,1734865849367,-479.57265574,0.00019999,5]
[346284536,1734865849377,-500.0,0.00019999,2]
[346284537,1734865849387,-583.19,0.00019999,2]
[346284538,1734865849396,-500.0,0.00019999,2]
[346284539,1734865849406,-2232.93,0.00019999,2]
[346284540,1734865849415,-2232.93,0.00019999,2]
[346284541,1734865849426,-2232.93,0.00019999,2]
[346284542,1734865849436,-2232.93,0.00019999,2]
[346284543,1734865849446,-2232.93,0.00019999,2]
[346284544,1734865849455,-2232.93,0.00019999,2]
[346284545,1734865849464,-2232.93,0.00019999,2]
[346284546,1734865849474,-549.54,0.00019999,2]
[346284547,1734865849483,-2232.93,0.00019999,2]
[346284548,1734865849493,-2232.93,0.00019999,2]
[346284549,1734865849502,-3123.72,0.00019999,2]
[346284550,1734865849512,-2232.93,0.00019999,2]
[346284551,1734865849521,-2232.93,0.00019999,2]
[346284552,1734865849531,-2232.93,0.00019999,2]
[346284553,1734865849541,-2232.93,0.00019999,2]
[346284554,1734865849551,-2232.93,0.00019999,2]
[346284555,1734865849561,-2232.93,0.00019999,2]
[346284556,1734865849571,-2232.93,0.00019999,2]
[346284557,1734865849581,-2232.93,0.00019999,2]
[346284558,1734865849592,-2232.93,0.00019999,2]
[346284559,1734865849602,-2232.93,0.00019999,2]
[346284560,1734865849612,-2232.93,0.00019999,2]
[346284561,1734865849622,-1245.64,0.00019999,2]
[346284562,1734865849632,-1175.94,0.00019999,2]
[346284563,1734865849642,-1011.24,0.00019999,2]
[346284564,1734865849651,-1000.0,0.00019999,2]
[346284565,1734865849661,-7240.41,0.00019999,2]
[346284566,1734865849671,-889.98,0.00019999,2]
[346284567,1734865849682,-587.69,0.00019999,2]
[346284568,1734865849692,-391.87751377,0.00019999,2]
[346284569,1734865849702,-672.73,0.00019999,2]
[346284570,1734865849712,-17582.59,0.00019999,2]
[346284571,1734865849722,-500.0,0.00019999,2]
[346284572,1734865849732,-906.62,0.00019999,2]
[346284573,1734865849741,-1171.19,0.00019999,2]
[346284574,1734865849751,-621.0,0.00019999,2]
[346284575,1734865849760,-5331.08,0.00019999,2]
[346284576,1734865849769,-1095.13,0.00019999,2]
[346284577,1734865849779,-150.0,0.00019999,2]
[346284578,1734865849788,-660.31,0.00019999,2]
[346284579,1734865849798,-500.0,0.00019999,2]
[346284580,1734865849807,-1139.85,0.00019999,2]
[346284581,1734865849816,-3003349.735159,0.0002,3]
[346284582,1734865849825,-41343.99391063,0.0002,3]
[346284583,1734865849835,-3090.46620517,0.0002,2]
[346284584,1734865849846,-5483302.64066084,0.0002,2]
[346284585,1734865850130,-444.3,0.00019726,2]
[346284586,1734865850141,-175.87,0.00019726,2]
[346284587,1734865850151,-5639.48861408,0.0002,2]
[346284588,1734865850163,-3906.47492057,0.0002,2]
[346284589,1734865850175,-6179.71603,0.0002,2]
[346284590,1734865850187,-16243.27489719,0.0002,2]
[346284591,1734865850217,-2797.59377281,0.0002,2]
[346284592,1734865850343,-571.4487318,0.0002,2]
[346284593,1734865850363,-16017.56347792,0.0002,2]
[346284594,1734865850401,-5931.15431095,0.0002,2]
[346284595,1734865850414,-281327.14958757,0.0002,2]
[346284596,1734865851018,-200.73122845,0.00016944,2]
[346284597,1734865851027,-240.10299089,0.000196,2]
[346284598,1734865851037,-89195.10664495,0.0002,2]
[346284599,1734865851054,-134645.92916697,0.0002,2]
[346284600,1734865851132,-22788.4766,0.0002,2]
[346284601,1734865851325,-500.0,0.00019178,2]
[346284602,1734865851335,-497.95470331,0.00019452,2]
[346284603,1734865851351,-2.04529669,0.00019452,2]
[346284604,1734865851365,-500.0,0.00019726,2]
[346284605,1734865851374,-1925.15470331,0.0002,2]
[346284606,1734865851395,-1101.0,0.00019945,2]
[346284607,1734865851405,-523781.10082663,0.0002,2]
[346284608,1734865851416,-331.01650254,0.0002,2]
[346284609,1734865851430,-500.0,0.0002,2]
[346284610,1734866011147,450.0,0.00013,2]
[346284611,1734866103616,154.0,0.00018,30]
[346284612,1734866103846,219.3895449,0.00018,30]
[346284613,1734866103951,154.0,0.00018,30]
[346284614,1734866151495,319.63,0.00010137,2]
[346284615,1734866403783,154.0,0.00018,30]
[346284617,1734866703195,155.0,0.00018,30]
[346284622,1734866975974,9463.37,0.00013007,2]
[346284623,1734866975996,10000.0,0.00013007,2]
[346284624,1734866976016,10000.0,0.00013007,2]
[346284625,1734866976038,10000.0,0.00013007,2]
[346284626,1734866976059,10000.0,0.00013007,2]
[346284627,1734866976078,10000.0,0.00013007,2]
[346284628,1734866976099,10000.0,0.00013007,2]
[346284629,1734866976124,10000.0,0.00013007,2]
[346284630,1734866976144,10000.0,0.00013007,2]
[346284631,1734866976166,10000.0,0.00013007,2]
[346284632,1734866976186,10000.0,0.00013007,2]
[346284633,1734866976207,10000.0,0.00013007,2]
[346284634,1734866976227,10000.0,0.00013007,2]
[346284635,1734866976247,3253.99254995,0.00013007,2]
[346284653,1734867032036,-2768.0,0.00013698,2]
[346284654,1734867032045,-160.27,0.00013699,2]
[346284655,1734867032055,-500.0,0.00015,2]
[346284656,1734867032064,-319.63,0.00016813,2]
[346284657,1734867032073,-450.80911555,0.00017,2]
[346284658,1734867032237,-99.19088445,0.00017,2]
[346284659,1734867032246,-500.0,0.00017144,2]
[346284660,1734867032255,-500.0,0.00017144,2]
[346284661,1734867032264,-467.38600647,0.00017256,2]
[346284662,1734867032367,-803.33399353,0.00017256,2]
[346284663,1734867032377,-250.0,0.0001726,2]
[346284664,1734867032387,-1087.02,0.00017271,2]
[346284665,1734867032396,-200.0,0.00017272,2]
[346284666,1734867032405,-166.48,0.00017296,2]
[346284667,1734867032414,-208.0,0.0001735,2]
[346284668,1734867032423,-1451.29,0.00017413,2]
[346284669,1734867032432,-160.27,0.00017534,2]
[346284670,1734867032441,-152.03,0.00017594,2]
[346284671,1734867032451,-152.03,0.00017602,2]
[346284672,1734867032459,-152.03,0.0001761,2]
[346284673,1734867032468,-152.03,0.00017618,2]
[346284674,1734867032478,-208.0,0.0001762,2]
[346284675,1734867032487,-152.03,0.00017626,2]
[346284676,1734867032496,-152.03,0.00017634,2]
[346284677,1734867032506,-200.0,0.00017635,2]
[346284678,1734867032515,-152.03,0.00017642,2]
[346284679,1734867032524,-152.03,0.0001765,2]
[346284680,1734867032533,-152.03,0.00017658,2]
[346284681,1734867032542,-152.03,0.00017666,2]
[346284682,1734867032551,-152.03,0.00017674,2]
[346284683,1734867032560,-250.0,0.0001768,2]
[346284684,1734867032570,-152.03,0.00017682,2]
[346284685,1734867032579,-629.17412406,0.00017747,2]
[346284689,1734867038050,-5216.32132093,0.00017747,2]
[346284690,1734867038065,-611.96207322,0.00017747,2]
[346284691,1734867038078,-8373.00248179,0.00017747,2]
[346284692,1734867038088,-208.0,0.0001788,2]
[346284693,1734867038099,-659.38,0.00017959,2]
[346284694,1734867038112,-150.00000001,0.00017975,2]
[346284695,1734867038124,-276.8957848,0.00017975,2]
[346284696,1734867038135,-800.0,0.00018,2]
[346284697,1734867038146,-1000.0,0.00018001,2]
[346284698,1734867038158,-493.07,0.00018047,2]
[346284699,1734867038169,-250.0,0.00018067,2]
[346284700,1734867038180,-307.483216,0.000181,2]
[346284701,1734867038193,-208.0,0.0001815,2]
[346284702,1734867038205,-500.0,0.0001824,2]
[346284703,1734867038216,-208.0,0.0001841,2]
[346284704,1734867038227,-267.0,0.00018622,2]
[346284705,1734867038239,-210.0,0.0001868,2]
[346284706,1734867038251,-208.0,0.0001868,2]
[346284707,1734867038261,-202.0,0.0001868,2]
[346284708,1734867038272,-179.86856121,0.00018924,2]
[346284709,1734867038283,-210.0,0.0001894,2]
[346284710,1734867038294,-208.0,0.0001894,2]
[346284711,1734867038305,-202.0,0.0001894,2]
[346284712,1734867038315,-770.54,0.00018945,2]
[346284713,1734867038326,-451.29,0.00018945,2]
[346284714,1734867038338,-770.54,0.00018945,2]
[346284715,1734867038349,-11704.50436243,0.0001898,2]
[346284716,1734867038363,-10811.00304557,0.0001898,2]
[346284717,1734867038383,-8158.83061646,0.0001898,2]
[346284718,1734867038394,-440.06,0.00019,2]
[346284719,1734867038405,-600.0,0.00019,2]
[346284720,1734867038416,-10441.6843087,0.00019,2]
[346284721,1734867038427,-300.0,0.00019014,2]
[346284723,1734867038438,-162.97,0.00019022,30]
[346284725,1734867038449,-1408.51,0.00019041,2]
[346284727,1734867038459,-500.0,0.00019178,2]
[346284729,1734867038470,-500.0,0.00019178,2]
[346284731,1734867038480,-500.0,0.00019178,2]
[346284733,1734867038491,-500.0,0.00019178,2]
[346284736,1734867038502,-500.0,0.00019178,2]
[346284738,1734867038512,-500.0,0.00019178,2]
[346284740,1734867038522,-406.9,0.00019178,2]
[346284741,1734867038533,-518.7,0.00019178,2]
[346284744,1734867038543,-514.37,0.00019178,2]
[346284746,1734867038553,-500.0,0.00019178,2]
[346284748,1734867038564,-736.79,0.00019178,2]
[346284749,1734867038575,-500.0,0.00019178,2]
[346284750,1734867038587,-500.0,0.00019178,2]
[346284751,1734867038598,-208.91,0.00019178,2]
[346284752,1734867038609,-500.0,0.00019178,2]
[346284754,1734867038619,-500.0,0.00019178,2]
[346284756,1734867038630,-500.0,0.00019178,2]
[346284759,1734867038641,-500.0,0.00019178,2]
[346284761,1734867038651,-500.0,0.00019178,2]
[346284763,1734867038662,-500.0,0.00019178,2]
[346284765,1734867038672,-500.0,0.00019178,2]
[346284767,1734867038683,-519.35,0.00019178,2]
[346284769,1734867038694,-500.0,0.00019178,2]
[346284771,1734867038704,-500.0,0.00019178,2]
[346284773,1734867038715,-500.0,0.00019178,2]
[346284777,1734867038725,-469.8,0.00019178,2]
[346284779,1734867038736,-500.0,0.00019178,2]
[346284782,1734867038746,-500.0,0.00019178,2]
[346284785,1734867038756,-500.0,0.00019178,2]
[346284789,1734867038767,-544.42,0.00019178,2]
[346284791,1734867038777,-500.0,0.00019178,2]
[346284793,1734867038788,-500.0,0.00019178,2]
[346284795,1734867038798,-784.02,0.00019178,2]
[346284797,1734867038808,-1208.42,0.00019178,2]
[346284800,1734867038819,-762.64,0.00019178,2]
[346284802,1734867038831,-581.82,0.00019178,2]
[346284803,1734867038841,-500.0,0.00019178,2]
[346284804,1734867038856,-2304.14,0.00019178,2]
[346284805,1734867038866,-210.0,0.0001921,2]
[346284806,1734867038878,-208.0,0.0001921,2]
[346284807,1734867038889,-202.0,0.0001921,2]
[346284808,1734867038900,-500.0,0.00019336,2]
[346284809,1734867038911,-1270.72,0.00019414,2]
[346284810,1734867038922,-500.0,0.0001945,2]
[346284811,1734867038932,-500.0,0.0001945,2]
[346284812,1734867038943,-571.58,0.0001945,2]
[346284813,1734867038954,-1569.54,0.0001945,2]
[346284814,1734867038966,-1013.8,0.0001945,2]
[346284815,1734867038975,-638.78,0.0001945,2]
[346284816,1734867038985,-7728.74,0.0001945,2]
[346284817,1734867038995,-569.55,0.0001945,2]
[346284818,1734867039004,-500.0,0.0001945,2]
[346284819,1734867039014,-768.75,0.0001945,2]
[346284820,1734867039024,-3281.53,0.0001945,2]
[346284821,1734867039034,-500.0,0.0001945,2]
[346284822,1734867039043,-500.0,0.0001945,2]
[346284823,1734867039053,-2064.03,0.0001945,2]
[346284824,1734867039063,-3141.58,0.0001945,2]
[346284825,1734867039072,-500.0,0.0001945,2]
[346284826,1734867039083,-500.0,0.0001945,2]
[346284827,1734867039392,-500.0,0.0001945,2]
[346284828,1734867039416,-12544.64,0.0001945,2]
[346284829,1734867039430,-500.0,0.0001945,2]
[346284830,1734867039440,-837.9,0.0001945,2]
[346284831,1734867039449,-500.0,0.0001945,2]
[346284832,1734867039458,-305.65802154,0.0001945,2]
[346284833,1734867039467,-500.0,0.0001945,2]
[346284834,1734867039477,-500.0,0.0001945,2]
[346284835,1734867039487,-630.07,0.0001945,2]
[346284836,1734867039497,-452.41,0.00019451,2]
[346284837,1734867039507,-500.0,0.00019451,2]
[346284838,1734867039516,-413.854175,0.00019451,2]
[346284839,1734867039526,-155.224097,0.00019451,2]
[346284840,1734867039535,-479.084336,0.00019451,2]
[346284841,1734867039545,-500.0,0.00019451,2]
[346284842,1734867039555,-588.83,0.00019451,2]
[346284843,1734867039565,-500.0,0.00019451,2]
[346284844,1734867039574,-528.02,0.00019451,2]
[346284845,1734867039584,-500.0,0.00019451,2]
[346284846,1734867039594,-159.09,0.00019451,2]
[346284847,1734867039604,-500.0,0.00019451,2]
[346284848,1734867039614,-500.0,0.00019451,2]
[346284849,1734867039623,-494.54832012,0.00019451,2]
[346284850,1734867039632,-500.0,0.00019451,2]
[346284851,1734867039642,-753.57,0.00019451,2]
[346284852,1734867039651,-500.0,0.00019451,2]
[346284853,1734867039661,-500.0,0.00019451,2]
[346284854,1734867039670,-500.0,0.00019451,2]
[346284855,1734867039679,-500.0,0.00019451,2]
[346284856,1734867039689,-500.0,0.00019451,2]
[346284857,1734867039700,-500.05,0.00019451,2]
[346284858,1734867039710,-500.0,0.00019451,2]
[346284859,1734867039720,-500.0,0.00019451,2]
[346284860,1734867039731,-500.0,0.00019451,2]
[346284861,1734867039741,-500.0,0.00019451,2]
[346284862,1734867039751,-331.92,0.00019451,2]
[346284863,1734867039760,-500.0,0.00019451,2]
[346284864,1734867039770,-500.0,0.00019451,2]
[346284865,1734867039779,-504.5,0.00019451,2]
[346284866,1734867039791,-445.8,0.00019451,2]
[346284867,1734867039801,-500.0,0.00019451,2]
[346284868,1734867039811,-246.65289673,0.00019451,2]
[346284869,1734867039820,-460.66,0.00019451,2]
[346284870,1734867039829,-360.12092287,0.00019451,2]
[346284871,1734867039838,-500.0,0.00019451,2]
[346284872,1734867039847,-500.0,0.00019451,2]
[346284873,1734867039857,-500.0,0.00019451,2]
[346284874,1734867039866,-542.65,0.00019451,2]
[346284875,1734867039876,-500.0,0.00019451,2]
[346284876,1734867039886,-500.0,0.00019451,2]
[346284877,1734867039896,-500.0,0.00019451,2]
[346284878,1734867039905,-500.0,0.00019451,2]
[346284880,1734867039915,-635.84,0.00019451,2]
[346284882,1734867039924,-500.0,0.00019451,2]
[346284883,1734867039933,-500.0,0.00019451,2]
[346284884,1734867039943,-758.06,0.00019451,2]
[346284885,1734867039953,-606.35,0.00019451,2]
[346284886,1734867039962,-500.0,0.00019451,2]
[346284887,1734867039972,-1953.81,0.00019451,2]
[346284889,1734867039981,-534.59,0.00019451,2]
[346284891,1734867039991,-500.0,0.00019451,2]
[346284892,1734867040001,-956.19,0.00019451,2]
[346284893,1734867040010,-500.0,0.00019451,2]
[346284894,1734867040020,-500.0,0.00019451,2]
[346284895,1734867040029,-2038.32,0.00019451,2]
[346284896,1734867040039,-500.0,0.00019451,2]
[346284897,1734867040049,-1312.21,0.00019451,2]
[346284898,1734867040059,-500.0,0.00019451,2]
[346284899,1734867040069,-500.0,0.00019451,2]
[346284900,1734867040079,-500.0,0.00019451,2]
[346284901,1734867040089,-596.64,0.00019451,2]
[346284902,1734867040099,-519.75,0.00019451,2]
[346284903,1734867040109,-500.0,0.00019451,2]
[346284904,1734867040123,-500.0,0.00019451,2]
[346284905,1734867040133,-500.0,0.00019451,2]
[346284906,1734867040142,-6303.37,0.00019451,2]
[346284907,1734867040151,-500.0,0.00019451,2]
[346284908,1734867040162,-1141.84,0.00019451,2]
[346284909,1734867040171,-500.0,0.00019451,2]
[346284910,1734867040181,-4369.54,0.00019451,2]
[346284911,1734867040191,-1755.71,0.00019451,2]
[346284912,1734867040200,-1077.95,0.00019451,2]